[Event "*** Titled Tuesday Blitz"]
[Site "Chess.com"]
[Date "2021.02.02"]
[Round "2"]
[White "MrrRefrao"]
[Black "WonderChampion"]
[Result "1-0"]
[WhiteElo "2389"]
[BlackElo "2065"]
[TimeControl "180+1"]
[EndTime "10:21:17 PST"]
[Termination "MrrRefrao won by resignation"]

1. e4 {[%clk 0:03:00.9]} 1... c5 {[%clk 0:02:58.5]} 2. Nf3 {[%clk 0:03:00.9]}
2... g6 {[%clk 0:02:58]} 3. d4 {[%clk 0:02:56.8]} 3... cxd4 {[%clk 0:02:58.9]}
4. Nxd4 {[%clk 0:02:57.3]} 4... Nc6 {[%clk 0:02:57.8]} 5. c4 {[%clk 0:02:56.6]}
5... Nf6 {[%clk 0:02:56.3]} 6. Nc3 {[%clk 0:02:56.3]} 6... Nxd4 {[%clk
0:02:54.9]} 7. Qxd4 {[%clk 0:02:57.2]} 7... d6 {[%clk 0:02:54.9]} 8. Be3 {[%clk
0:02:52.7]} 8... Bg7 {[%clk 0:02:52.5]} 9. f3 {[%clk 0:02:52.8]} 9... O-O {[%clk
0:02:51.4]} 10. Qd2 {[%clk 0:02:52.5]} 10... a5 {[%clk 0:02:46.6]} 11. Bd3
{[%clk 0:02:26.1]} 11... a4 {[%clk 0:02:45.2]} 12. Rc1 {[%clk 0:02:16.7]} 12...
Qa5 {[%clk 0:02:41.6]} 13. Nb5 {[%clk 0:01:23.6]} 13... Qxd2+ {[%clk 0:02:34.3]}
14. Kxd2 {[%clk 0:01:24.5]} 14... Bd7 {[%clk 0:02:33.8]} 15. g4 {[%clk
0:01:10.8]} 15... Rfc8 {[%clk 0:02:31.8]} 16. h4 {[%clk 0:00:57.6]} 16... Ne8
{[%clk 0:02:28.6]} 17. Nd4 {[%clk 0:00:50.1]} 17... a3 {[%clk 0:02:22.4]} 18. b3
{[%clk 0:00:48.7]} 18... Nc7 {[%clk 0:02:20]} 19. h5 {[%clk 0:00:45.9]} 19...
Ne6 {[%clk 0:02:19]} 20. Nxe6 {[%clk 0:00:43.3]} 20... Bxe6 {[%clk 0:02:19.9]}
21. h6 {[%clk 0:00:40.1]} 21... Bh8 {[%clk 0:02:18.3]} 22. Rhg1 {[%clk
0:00:39.6]} 22... Bb2 {[%clk 0:02:14.4]} 23. Rc2 {[%clk 0:00:35.3]} 23... Bf6
{[%clk 0:02:08.1]} 24. f4 {[%clk 0:00:33.7]} 24... Rc7 {[%clk 0:02:04.1]} 25. g5
{[%clk 0:00:29.6]} 25... Bh8 {[%clk 0:02:03.4]} 26. Rf1 {[%clk 0:00:21.3]} 26...
Bd7 {[%clk 0:02:01.6]} 27. Bb6 {[%clk 0:00:16.2]} 27... Rc6 {[%clk 0:02:00.2]}
28. Be3 {[%clk 0:00:15.4]} 28... Rac8 {[%clk 0:01:58.3]} 29. f5 {[%clk
0:00:07.5]} 29... R6c7 {[%clk 0:01:51.5]} 30. f6 {[%clk 0:00:06.1]} 30... e5
{[%clk 0:01:47.1]} 31. Bb6 {[%clk 0:00:02.4]} 31... Rc6 {[%clk 0:01:46]} 32. Ba5
{[%clk 0:00:02.8]} 32... Ra8 {[%clk 0:01:43.6]} 33. Bb4 {[%clk 0:00:02.4]} 33...
Rb6 {[%clk 0:01:41.2]} 34. Bc3 {[%clk 0:00:02.6]} 34... Rc6 {[%clk 0:01:33.6]}
35. Rfc1 {[%clk 0:00:03]} 35... Rc7 {[%clk 0:01:29.1]} 36. Ke3 {[%clk
0:00:02.6]} 36... Rb8 {[%clk 0:01:26.9]} 37. Bb4 {[%clk 0:00:02.8]} 37... Rc6
{[%clk 0:01:24.5]} 38. Bxa3 {[%clk 0:00:03.3]} 38... Ra8 {[%clk 0:01:23]} 39.
Bb4 {[%clk 0:00:02.7]} 39... Rb6 {[%clk 0:01:18.3]} 40. Bd2 {[%clk 0:00:03]}
40... Be6 {[%clk 0:01:14.4]} 41. Be1 {[%clk 0:00:01.8]} 41... Rba6 {[%clk
0:01:10.9]} 42. a4 {[%clk 0:00:01.5]} 42... Rb6 {[%clk 0:01:10]} 43. Rb2 {[%clk
0:00:01.9]} 43... Rxa4 {[%clk 0:01:08.6]} 44. Rcb1 {[%clk 0:00:02.2]} 44... Ra3
{[%clk 0:01:06.7]} 45. Kd2 {[%clk 0:00:02.7]} 45... Rc6 {[%clk 0:00:59.2]} 46.
Bf2 {[%clk 0:00:02.8]} 46... Rc8 {[%clk 0:00:54.6]} 47. Bc2 {[%clk 0:00:01.6]}
47... Rca8 {[%clk 0:00:53.8]} 48. Rc1 {[%clk 0:00:02.2]} 48... Rb8 {[%clk
0:00:51.2]} 49. Rbb1 {[%clk 0:00:01.6]} 49... b5 {[%clk 0:00:50.2]} 50. cxb5
{[%clk 0:00:02.1]} 50... Rxb5 {[%clk 0:00:51.1]} 51. Ra1 {[%clk 0:00:02.6]}
51... Rxa1 {[%clk 0:00:43.6]} 52. Rxa1 {[%clk 0:00:02.1]} 52... Rb8 {[%clk
0:00:44]} 53. Ra6 {[%clk 0:00:02.4]} 53... Rd8 {[%clk 0:00:42.4]} 54. Bb6 {[%clk
0:00:02.9]} 54... Rc8 {[%clk 0:00:38.7]} 55. b4 {[%clk 0:00:02.7]} 55... Bc4
{[%clk 0:00:37.7]} 56. Ra7 {[%clk 0:00:02.4]} 56... d5 {[%clk 0:00:32.5]} 57.
exd5 {[%clk 0:00:02.8]} 57... Bxd5 {[%clk 0:00:33.4]} 58. Ba4 {[%clk 0:00:02.5]}
58... Be6 {[%clk 0:00:31.5]} 59. Bd7 {[%clk 0:00:01.5]} 59... Bxd7 {[%clk
0:00:30.8]} 60. Rxd7 {[%clk 0:00:02.4]} 60... Rb8 {[%clk 0:00:30.8]} 61. Rd8+
{[%clk 0:00:02.1]} 61... Rxd8+ {[%clk 0:00:30.6]} 62. Bxd8 {[%clk 0:00:03]}
62... Kf8 {[%clk 0:00:31]} 63. Be7+ {[%clk 0:00:03.4]} 63... Ke8 {[%clk
0:00:30.6]} 64. Bd6 {[%clk 0:00:03.5]} 64... e4 {[%clk 0:00:29.6]} 65. Ke3
{[%clk 0:00:03.8]} 65... Kd7 {[%clk 0:00:29.6]} 66. Be7 {[%clk 0:00:03.7]} 66...
Ke6 {[%clk 0:00:29.4]} 67. Kxe4 {[%clk 0:00:03.9]} 67... Kd7 {[%clk 0:00:27.5]}
68. Bf8 {[%clk 0:00:03.6]} 68... Kc7 {[%clk 0:00:26.6]} 69. Bg7 {[%clk
0:00:04.2]} 69... Bxg7 {[%clk 0:00:26.1]} 70. hxg7 {[%clk 0:00:03.7]} 70... h5
{[%clk 0:00:25.5]} 71. g8=Q {[%clk 0:00:04.6]} 71... h4 {[%clk 0:00:25.6]} 72.
Qxf7+ {[%clk 0:00:05.5]} 72... Kd6 {[%clk 0:00:25]} 73. Qxg6 {[%clk 0:00:06.4]}
73... h3 {[%clk 0:00:24.2]} 74. Qh5 {[%clk 0:00:07.3]} 1-0

[Event "*** Titled Tuesday Blitz"]
[Site "Chess.com"]
[Date "2021.02.02"]
[Round "2"]
[White "Kale36"]
[Black "ShapkinAnatoliy"]
[Result "0-1"]
[WhiteElo "2293"]
[BlackElo "2630"]
[TimeControl "180+1"]
[EndTime "10:21:23 PST"]
[Termination "ShapkinAnatoliy won by checkmate"]

1. b3 {[%clk 0:03:00.9]} 1... e5 {[%clk 0:02:59.1]} 2. Bb2 {[%clk 0:03:01.1]}
2... Nc6 {[%clk 0:02:59.7]} 3. e3 {[%clk 0:03:01.5]} 3... Nf6 {[%clk 0:03:00.1]}
4. Bb5 {[%clk 0:03:01.3]} 4... Bd6 {[%clk 0:03:00.7]} 5. Na3 {[%clk 0:03:01.2]}
5... a6 {[%clk 0:03:00.8]} 6. Be2 {[%clk 0:02:58.4]} 6... Bc5 {[%clk 0:02:38.1]}
7. c4 {[%clk 0:02:52.9]} 7... O-O {[%clk 0:02:34.7]} 8. Nc2 {[%clk 0:02:50.3]}
8... d5 {[%clk 0:02:32.4]} 9. cxd5 {[%clk 0:02:47]} 9... Nxd5 {[%clk 0:02:25.7]}
10. d3 {[%clk 0:02:37.9]} 10... Re8 {[%clk 0:01:57.2]} 11. Nf3 {[%clk
0:02:36.5]} 11... Bg4 {[%clk 0:01:51.9]} 12. O-O {[%clk 0:02:35]} 12... Qd7
{[%clk 0:01:45]} 13. a3 {[%clk 0:02:33.2]} 13... Rad8 {[%clk 0:01:43.7]} 14. b4
{[%clk 0:02:32.1]} 14... Ba7 {[%clk 0:01:43.1]} 15. h3 {[%clk 0:02:23.6]} 15...
Bh5 {[%clk 0:01:37]} 16. d4 {[%clk 0:02:19.7]} 16... e4 {[%clk 0:01:24.9]} 17.
Ne5 {[%clk 0:02:13.9]} 17... Bxe2 {[%clk 0:01:12.6]} 18. Qxe2 {[%clk 0:02:14.8]}
18... Nxe5 {[%clk 0:01:12.2]} 19. dxe5 {[%clk 0:02:14.5]} 19... Nb6 {[%clk
0:00:56.1]} 20. Rfd1 {[%clk 0:02:06.8]} 20... Qa4 {[%clk 0:00:37]} 21. Bd4
{[%clk 0:02:01.6]} 21... Bb8 {[%clk 0:00:36.4]} 22. Ne1 {[%clk 0:01:35]} 22...
Qb5 {[%clk 0:00:28.7]} 23. Qxb5 {[%clk 0:01:31.7]} 23... axb5 {[%clk 0:00:29.6]}
24. Bxb6 {[%clk 0:01:31.1]} 24... cxb6 {[%clk 0:00:30.5]} 25. Nc2 {[%clk
0:01:26]} 25... Bxe5 {[%clk 0:00:29.7]} 26. Nd4 {[%clk 0:01:20.3]} 26... Bxd4
{[%clk 0:00:28]} 27. exd4 {[%clk 0:01:20.5]} 27... Rd7 {[%clk 0:00:27.4]} 28.
Ra2 {[%clk 0:01:17.7]} 28... f5 {[%clk 0:00:27.4]} 29. d5 {[%clk 0:01:12.8]}
29... Rc8 {[%clk 0:00:26.8]} 30. d6 {[%clk 0:01:09.6]} 30... Kf7 {[%clk
0:00:26.9]} 31. Rd5 {[%clk 0:01:09.3]} 31... Ke6 {[%clk 0:00:24.8]} 32. Rad2
{[%clk 0:01:06.6]} 32... Rc6 {[%clk 0:00:24.1]} 33. Rxb5 {[%clk 0:01:05.7]}
33... Rdxd6 {[%clk 0:00:24.1]} 34. Rxd6+ {[%clk 0:01:01.3]} 34... Rxd6 {[%clk
0:00:25]} 35. a4 {[%clk 0:01:00.9]} 35... g6 {[%clk 0:00:25.1]} 36. a5 {[%clk
0:01:00.7]} 36... bxa5 {[%clk 0:00:23.4]} 37. bxa5 {[%clk 0:01:01.6]} 37... Rd7
{[%clk 0:00:23.1]} 38. h4 {[%clk 0:00:50.5]} 38... Kd6 {[%clk 0:00:22.8]} 39. a6
{[%clk 0:00:44.4]} 39... bxa6 {[%clk 0:00:15.7]} 40. Rb6+ {[%clk 0:00:44.6]}
40... Ke5 {[%clk 0:00:16.3]} 41. Rxa6 {[%clk 0:00:45.5]} 41... Kf4 {[%clk
0:00:12.4]} 42. Kh2 {[%clk 0:00:40.1]} 42... Kg4 {[%clk 0:00:12.2]} 43. g3
{[%clk 0:00:38]} 43... Rd2 {[%clk 0:00:12]} 44. Kg1 {[%clk 0:00:36.8]} 44... e3
{[%clk 0:00:11.6]} 45. Ra4+ {[%clk 0:00:33.6]} 45... Kh3 {[%clk 0:00:09.8]} 46.
fxe3 {[%clk 0:00:28.2]} 46... Kxg3 {[%clk 0:00:08.3]} 47. Kf1 {[%clk 0:00:27]}
47... Kf3 {[%clk 0:00:06.5]} 48. Ke1 {[%clk 0:00:26.6]} 48... Re2+ {[%clk
0:00:06.6]} 49. Kd1 {[%clk 0:00:26.6]} 49... Rxe3 {[%clk 0:00:06.7]} 50. h5
{[%clk 0:00:27.1]} 50... Re4 {[%clk 0:00:06.3]} 51. Ra7 {[%clk 0:00:26.5]} 51...
gxh5 {[%clk 0:00:05.4]} 52. Rxh7 {[%clk 0:00:26.3]} 52... h4 {[%clk 0:00:05.3]}
53. Kd2 {[%clk 0:00:25.2]} 53... Re6 {[%clk 0:00:03.9]} 54. Rh5 {[%clk
0:00:24.5]} 54... f4 {[%clk 0:00:03.8]} 55. Kd1 {[%clk 0:00:24.5]} 55... Kf2
{[%clk 0:00:03.6]} 56. Rxh4 {[%clk 0:00:24.8]} 56... f3 {[%clk 0:00:03.9]} 57.
Kd2 {[%clk 0:00:23.9]} 57... Rd6+ {[%clk 0:00:04.3]} 58. Kc1 {[%clk 0:00:23.7]}
58... Kf1 {[%clk 0:00:04.6]} 59. Rh8 {[%clk 0:00:22]} 59... f2 {[%clk 0:00:05]}
60. Re8 {[%clk 0:00:21.6]} 60... Rg6 {[%clk 0:00:04.5]} 61. Rf8 {[%clk
0:00:15.2]} 61... Kg2 {[%clk 0:00:04.3]} 62. Kd2 {[%clk 0:00:14.1]} 62... f1=Q
{[%clk 0:00:04.5]} 63. Rxf1 {[%clk 0:00:14.7]} 63... Kxf1 {[%clk 0:00:05.4]} 64.
Ke3 {[%clk 0:00:15.5]} 64... Rg2 {[%clk 0:00:06]} 65. Ke4 {[%clk 0:00:16.4]}
65... Rf2 {[%clk 0:00:06.9]} 66. Ke5 {[%clk 0:00:17.3]} 66... Ke2 {[%clk
0:00:07.8]} 67. Ke4 {[%clk 0:00:18]} 67... Rf3 {[%clk 0:00:08.7]} 68. Kd4 {[%clk
0:00:18.2]} 68... Re3 {[%clk 0:00:08.9]} 69. Kc5 {[%clk 0:00:19.1]} 69... Kd3
{[%clk 0:00:07.9]} 70. Kd5 {[%clk 0:00:20]} 70... Re4 {[%clk 0:00:08.2]} 71. Kd6
{[%clk 0:00:20.9]} 71... Kd4 {[%clk 0:00:08.2]} 72. Kd7 {[%clk 0:00:20.9]} 72...
Kd5 {[%clk 0:00:08]} 73. Kc7 {[%clk 0:00:21.4]} 73... Re6 {[%clk 0:00:08.3]} 74.
Kd7 {[%clk 0:00:21]} 74... Re5 {[%clk 0:00:08.5]} 75. Kd8 {[%clk 0:00:16.9]}
75... Kc6 {[%clk 0:00:06.5]} 76. Kc8 {[%clk 0:00:16.9]} 76... Re8# {[%clk
0:00:07.4]} 0-1

[Event "*** Titled Tuesday Blitz"]
[Site "Chess.com"]
[Date "2021.02.02"]
[Round "2"]
[White "CrushingKings"]
[Black "Spalir"]
[Result "1-0"]
[WhiteElo "2333"]
[BlackElo "2620"]
[TimeControl "180+1"]
[EndTime "10:21:29 PST"]
[Termination "CrushingKings won by resignation"]

1. e4 {[%clk 0:03:00.9]} 1... c5 {[%clk 0:02:59.3]} 2. d4 {[%clk 0:02:59.6]}
2... cxd4 {[%clk 0:02:59.1]} 3. c3 {[%clk 0:03:00.5]} 3... d3 {[%clk 0:02:54.7]}
4. Bxd3 {[%clk 0:02:59.7]} 4... Nc6 {[%clk 0:02:54.5]} 5. c4 {[%clk 0:03:00.2]}
5... d6 {[%clk 0:02:51.7]} 6. h3 {[%clk 0:03:00.4]} 6... g6 {[%clk 0:02:47.2]}
7. Nf3 {[%clk 0:03:00.9]} 7... Bg7 {[%clk 0:02:45.5]} 8. O-O {[%clk 0:02:59.4]}
8... Nf6 {[%clk 0:02:43.5]} 9. Nc3 {[%clk 0:03:00]} 9... O-O {[%clk 0:02:41]}
10. Be3 {[%clk 0:03:00.5]} 10... Nd7 {[%clk 0:02:35.7]} 11. Rc1 {[%clk
0:03:00.7]} 11... Nc5 {[%clk 0:02:32.7]} 12. Bb1 {[%clk 0:03:00.8]} 12... a5
{[%clk 0:02:31.5]} 13. b3 {[%clk 0:02:58.1]} 13... b6 {[%clk 0:02:19.4]} 14. Qe2
{[%clk 0:02:57.3]} 14... Bb7 {[%clk 0:02:16.3]} 15. Rfd1 {[%clk 0:02:57.9]}
15... Qb8 {[%clk 0:01:54.4]} 16. Nd5 {[%clk 0:02:57]} 16... Qa7 {[%clk
0:01:47.6]} 17. h4 {[%clk 0:02:47]} 17... e6 {[%clk 0:01:43.9]} 18. Nc7 {[%clk
0:02:44.8]} 18... Rad8 {[%clk 0:01:40]} 19. Nb5 {[%clk 0:02:35.2]} 19... Qb8
{[%clk 0:01:40.1]} 20. h5 {[%clk 0:02:34.2]} 20... Rfe8 {[%clk 0:01:33.4]} 21.
Qd2 {[%clk 0:02:30.2]} 21... Ne5 {[%clk 0:01:28.7]} 22. Nxe5 {[%clk 0:01:37.6]}
22... dxe5 {[%clk 0:01:29.6]} 23. Qe2 {[%clk 0:01:37.9]} 23... Rxd1+ {[%clk
0:01:20.2]} 24. Rxd1 {[%clk 0:01:38.8]} 24... Rd8 {[%clk 0:01:20.9]} 25. h6
{[%clk 0:01:35.8]} 25... Bf8 {[%clk 0:01:17.9]} 26. f3 {[%clk 0:01:33.1]} 26...
Bc6 {[%clk 0:01:13.8]} 27. Nc3 {[%clk 0:01:27.6]} 27... f6 {[%clk 0:01:09.8]}
28. Bc2 {[%clk 0:01:26.6]} 28... Kf7 {[%clk 0:01:05.7]} 29. Rb1 {[%clk
0:01:22.3]} 29... Na6 {[%clk 0:01:00.3]} 30. Rd1 {[%clk 0:01:15.6]} 30... Bb4
{[%clk 0:00:55.3]} 31. Nb1 {[%clk 0:01:14.9]} 31... Be7 {[%clk 0:00:50]} 32.
Rxd8 {[%clk 0:01:10.7]} 32... Qxd8 {[%clk 0:00:48.3]} 33. a3 {[%clk 0:01:10.4]}
33... Bc5 {[%clk 0:00:42.1]} 34. Kf2 {[%clk 0:01:09.7]} 34... Qf8 {[%clk
0:00:38.1]} 35. Qd2 {[%clk 0:01:05.9]} 35... Qxh6 {[%clk 0:00:32.5]} 36. Nc3
{[%clk 0:00:55]} 36... Qf8 {[%clk 0:00:28.4]} 37. Nb5 {[%clk 0:00:49.3]} 37...
Qe7 {[%clk 0:00:20.4]} 38. Bxc5 {[%clk 0:00:40.7]} 38... Qxc5+ {[%clk
0:00:21.3]} 39. Kg3 {[%clk 0:00:41.1]} 39... Bxb5 {[%clk 0:00:21.8]} 40. cxb5
{[%clk 0:00:41.2]} 40... Qxb5 {[%clk 0:00:21.5]} 41. Qd6 {[%clk 0:00:40.7]}
41... Nc5 {[%clk 0:00:20.8]} 42. Qc7+ {[%clk 0:00:37.4]} 42... Kg8 {[%clk
0:00:21.2]} 43. Qd8+ {[%clk 0:00:36.5]} 43... Kf7 {[%clk 0:00:20.7]} 44. Qc7+
{[%clk 0:00:36.8]} 44... Nd7 {[%clk 0:00:21]} 45. a4 {[%clk 0:00:33.2]} 45...
Qe2 {[%clk 0:00:17.9]} 46. Qxd7+ {[%clk 0:00:33.4]} 46... Kf8 {[%clk 0:00:18.6]}
47. Bd3 {[%clk 0:00:30.6]} 47... Qe1+ {[%clk 0:00:18.7]} 48. Kh2 {[%clk
0:00:30.6]} 48... Qh4+ {[%clk 0:00:18.4]} 49. Kg1 {[%clk 0:00:31.2]} 49... Qe1+
{[%clk 0:00:19.3]} 50. Bf1 {[%clk 0:00:31.6]} 50... Qe3+ {[%clk 0:00:19.7]} 51.
Kh1 {[%clk 0:00:31.9]} 51... Qxb3 {[%clk 0:00:20.6]} 52. Qd6+ {[%clk 0:00:30.3]}
52... Kg7 {[%clk 0:00:20.9]} 53. Qe7+ {[%clk 0:00:30]} 53... Kg8 {[%clk
0:00:19.1]} 54. Qxf6 {[%clk 0:00:30.1]} 54... Qxa4 {[%clk 0:00:18.9]} 55. Qxe6+
{[%clk 0:00:30.5]} 55... Kg7 {[%clk 0:00:19.4]} 56. Qxe5+ {[%clk 0:00:30.6]}
56... Kf8 {[%clk 0:00:18.8]} 57. Qf6+ {[%clk 0:00:30.3]} 57... Ke8 {[%clk
0:00:19.4]} 58. Qxb6 {[%clk 0:00:29.9]} 58... Qd1 {[%clk 0:00:18.7]} 59. Qc6+
{[%clk 0:00:22.8]} 59... Kf8 {[%clk 0:00:18.7]} 60. Qc5+ {[%clk 0:00:22.9]}
60... Kg7 {[%clk 0:00:18.6]} 61. Qe7+ {[%clk 0:00:22.5]} 61... Kh6 {[%clk
0:00:17.3]} 62. Qf8+ {[%clk 0:00:22.8]} 62... Kg5 {[%clk 0:00:17.1]} 63. Kg1
{[%clk 0:00:22.2]} 63... Qd4+ {[%clk 0:00:16.6]} 64. Kh2 {[%clk 0:00:22.3]}
64... Qe5+ {[%clk 0:00:16.8]} 65. g3 {[%clk 0:00:21.8]} 65... Qb2+ {[%clk
0:00:16.9]} 66. Bg2 {[%clk 0:00:21.9]} 66... Qd2 {[%clk 0:00:07.6]} 67. f4+
{[%clk 0:00:21]} 67... Kh5 {[%clk 0:00:08]} 68. Kh3 {[%clk 0:00:19.9]} 68... Qe2
{[%clk 0:00:07.6]} 69. Qf6 {[%clk 0:00:18]} 69... Qg4+ {[%clk 0:00:07.2]} 70.
Kh2 {[%clk 0:00:18.5]} 70... Kh6 {[%clk 0:00:07.4]} 71. Qf8+ {[%clk 0:00:16.8]}
71... Kh5 {[%clk 0:00:08.1]} 72. Qd8 {[%clk 0:00:16.7]} 72... Kh6 {[%clk
0:00:08.3]} 73. Qxa5 {[%clk 0:00:16.7]} 73... Qe2 {[%clk 0:00:08.4]} 74. Qg5+
{[%clk 0:00:16.7]} 74... Kg7 {[%clk 0:00:08.5]} 75. e5 {[%clk 0:00:17.6]} 75...
Qe3 {[%clk 0:00:07.5]} 76. Qf6+ {[%clk 0:00:17.9]} 76... Kh6 {[%clk 0:00:08]}
77. e6 {[%clk 0:00:17.9]} 77... Qe2 {[%clk 0:00:05.9]} 78. e7 {[%clk 0:00:17.3]}
78... Qh5+ {[%clk 0:00:05.7]} 79. Qh4 {[%clk 0:00:16.8]} 79... Kg7 {[%clk
0:00:05]} 80. Qxh5 {[%clk 0:00:17]} 1-0

[Event "*** Titled Tuesday Blitz"]
[Site "Chess.com"]
[Date "2021.02.02"]
[Round "2"]
[White "LawrenceTrent"]
[Black "Rud_Makarian"]
[Result "0-1"]
[WhiteElo "2571"]
[BlackElo "2899"]
[TimeControl "180+1"]
[EndTime "10:21:32 PST"]
[Termination "Rud_Makarian won by resignation"]

1. d4 {[%clk 0:03:00.9]} 1... Nf6 {[%clk 0:03:00]} 2. Nc3 {[%clk 0:03:00.9]}
2... c5 {[%clk 0:02:53.4]} 3. d5 {[%clk 0:02:59.1]} 3... d6 {[%clk 0:02:53.8]}
4. e4 {[%clk 0:02:59]} 4... g6 {[%clk 0:02:54.4]} 5. Bb5+ {[%clk 0:02:55.3]}
5... Nbd7 {[%clk 0:02:53.8]} 6. a4 {[%clk 0:02:55]} 6... Bg7 {[%clk 0:02:54]} 7.
h3 {[%clk 0:02:55.1]} 7... O-O {[%clk 0:02:54.4]} 8. Nf3 {[%clk 0:02:55.6]} 8...
Ne8 {[%clk 0:02:54.9]} 9. O-O {[%clk 0:02:55.1]} 9... Nc7 {[%clk 0:02:55.3]} 10.
Re1 {[%clk 0:02:53.9]} 10... Rb8 {[%clk 0:02:51.8]} 11. Bf4 {[%clk 0:02:52.4]}
11... a6 {[%clk 0:02:51.7]} 12. Bxd7 {[%clk 0:02:51]} 12... Bxd7 {[%clk
0:02:52.6]} 13. e5 {[%clk 0:02:51.4]} 13... dxe5 {[%clk 0:02:51]} 14. Bxe5
{[%clk 0:02:45.8]} 14... b5 {[%clk 0:02:47.1]} 15. axb5 {[%clk 0:02:37.3]} 15...
axb5 {[%clk 0:02:48]} 16. Bxg7 {[%clk 0:02:31.8]} 16... Kxg7 {[%clk 0:02:47.9]}
17. d6 {[%clk 0:02:32.4]} 17... Ne6 {[%clk 0:02:23.1]} 18. Ne5 {[%clk
0:02:25.2]} 18... Rb7 {[%clk 0:02:20.7]} 19. Qd5 {[%clk 0:02:17.2]} 19... Bc8
{[%clk 0:02:00.6]} 20. dxe7 {[%clk 0:02:09.7]} 20... Qxe7 {[%clk 0:01:54.5]} 21.
Ra8 {[%clk 0:01:47.9]} 21... Rc7 {[%clk 0:01:44.2]} 22. Nc6 {[%clk 0:01:36.8]}
22... Qd7 {[%clk 0:01:30]} 23. Ne5 {[%clk 0:01:17.5]} 23... Qe7 {[%clk
0:01:13.8]} 24. Nc6 {[%clk 0:00:57.7]} 24... Qf6 {[%clk 0:01:00.5]} 25. Qd6
{[%clk 0:00:49.8]} 25... Bb7 {[%clk 0:00:56.9]} 26. Rxe6 {[%clk 0:00:27.5]}
26... Rxc6 {[%clk 0:00:55.8]} 27. Rxf6 {[%clk 0:00:25.8]} 27... Rxd6 {[%clk
0:00:54.1]} 28. Rxd6 {[%clk 0:00:25.9]} 28... Rxa8 {[%clk 0:00:53.8]} 29. Nxb5
{[%clk 0:00:26.1]} 29... Ra1+ {[%clk 0:00:52.8]} 30. Kh2 {[%clk 0:00:26.4]}
30... Ra2 {[%clk 0:00:53.7]} 31. Rb6 {[%clk 0:00:25.3]} 31... Bc8 {[%clk
0:00:47.5]} 32. Nc3 {[%clk 0:00:24.7]} 32... Ra1 {[%clk 0:00:47.9]} 33. Kg3
{[%clk 0:00:24]} 33... Rc1 {[%clk 0:00:47.6]} 34. Rc6 {[%clk 0:00:22.8]} 34...
Be6 {[%clk 0:00:46.1]} 35. Rxc5 {[%clk 0:00:22.6]} 35... Rxc2 {[%clk 0:00:46.6]}
36. b4 {[%clk 0:00:23.2]} 36... Rb2 {[%clk 0:00:46.9]} 37. b5 {[%clk 0:00:23.6]}
37... h5 {[%clk 0:00:45.7]} 38. h4 {[%clk 0:00:23.5]} 38... Kf6 {[%clk
0:00:45.8]} 39. f3 {[%clk 0:00:24]} 39... Ke7 {[%clk 0:00:45]} 40. Ne4 {[%clk
0:00:23.9]} 40... Kd7 {[%clk 0:00:39.2]} 41. Re5 {[%clk 0:00:20.5]} 41... Bc4
{[%clk 0:00:34]} 42. Nc3 {[%clk 0:00:12.3]} 42... Bf1 {[%clk 0:00:32.7]} 43.
Rd5+ {[%clk 0:00:11.3]} 43... Ke6 {[%clk 0:00:31.2]} 44. Rd4 {[%clk 0:00:09.1]}
44... Rxg2+ {[%clk 0:00:24.3]} 45. Kf4 {[%clk 0:00:09.4]} 45... Rb2 {[%clk
0:00:24.8]} 46. Re4+ {[%clk 0:00:08]} 46... Kd6 {[%clk 0:00:24]} 47. Ra4 {[%clk
0:00:08.3]} 47... Bxb5 {[%clk 0:00:21.9]} 48. Nxb5+ {[%clk 0:00:08.6]} 48...
Rxb5 {[%clk 0:00:22.8]} 49. Ra6+ {[%clk 0:00:09.3]} 49... Ke7 {[%clk 0:00:22.6]}
50. Ra7+ {[%clk 0:00:09.4]} 50... Kf8 {[%clk 0:00:22.9]} 51. Ra6 {[%clk
0:00:09.4]} 51... Rf5+ {[%clk 0:00:23.2]} 52. Kg3 {[%clk 0:00:09.9]} 52... Ke7
{[%clk 0:00:24]} 53. Rb6 {[%clk 0:00:10.3]} 53... Kd7 {[%clk 0:00:24.4]} 54. Ra6
{[%clk 0:00:10.8]} 54... Ke7 {[%clk 0:00:23]} 55. Rb6 {[%clk 0:00:11.4]} 55...
Re5 {[%clk 0:00:22.7]} 56. Ra6 {[%clk 0:00:11.9]} 56... Re6 {[%clk 0:00:23]} 57.
Ra7+ {[%clk 0:00:12.6]} 57... Kf6 {[%clk 0:00:23.2]} 58. Ra5 {[%clk 0:00:13.2]}
58... Rd6 {[%clk 0:00:20]} 59. Rb5 {[%clk 0:00:13.3]} 59... Re6 {[%clk 0:00:20]}
60. Ra5 {[%clk 0:00:13.9]} 60... Re5 {[%clk 0:00:20.3]} 61. Ra6+ {[%clk
0:00:14.2]} 61... Kf5 {[%clk 0:00:19]} 62. Ra7 {[%clk 0:00:14.8]} 62... f6
{[%clk 0:00:18.5]} 63. Ra6 {[%clk 0:00:15.4]} 63... Rd5 {[%clk 0:00:18.6]} 64.
Rb6 {[%clk 0:00:15.6]} 64... g5 {[%clk 0:00:17.8]} 65. Ra6 {[%clk 0:00:15.1]}
65... Re5 {[%clk 0:00:13.4]} 66. Rb6 {[%clk 0:00:14.5]} 66... Rd5 {[%clk
0:00:13.9]} 67. Ra6 {[%clk 0:00:14.9]} 67... Rd4 {[%clk 0:00:14.4]} 68. Ra5+
{[%clk 0:00:15.1]} 68... Kg6 {[%clk 0:00:14.7]} 69. hxg5 {[%clk 0:00:13.6]}
69... fxg5 {[%clk 0:00:15.6]} 70. Ra6+ {[%clk 0:00:13.2]} 70... Kf5 {[%clk
0:00:14.6]} 71. Ra5+ {[%clk 0:00:13.4]} 71... Kf6 {[%clk 0:00:15.2]} 72. Ra6+
{[%clk 0:00:13.6]} 72... Ke5 {[%clk 0:00:14]} 73. Ra5+ {[%clk 0:00:11.1]} 73...
Rd5 {[%clk 0:00:14.1]} 74. Ra4 {[%clk 0:00:11.6]} 74... Kf5 {[%clk 0:00:14.1]}
75. Ra8 {[%clk 0:00:11.6]} 75... h4+ {[%clk 0:00:13.9]} 76. Kh3 {[%clk
0:00:11.8]} 76... Kf4 {[%clk 0:00:14.6]} 77. Rf8+ {[%clk 0:00:11.7]} 77... Rf5
{[%clk 0:00:15.1]} 78. Ra8 {[%clk 0:00:07.6]} 78... Kxf3 {[%clk 0:00:14.7]} 79.
Ra3+ {[%clk 0:00:08.2]} 79... Ke4 {[%clk 0:00:15.2]} 80. Ra4+ {[%clk 0:00:08.6]}
80... Ke5 {[%clk 0:00:15.2]} 81. Kg4 {[%clk 0:00:08.9]} 81... Rf4+ {[%clk
0:00:14.4]} 0-1